[Event "Chessable Masters - Torneo preliminare"]
[White "Ibarra Jerez, Jose Carlos"]
[Black "Flores, Diego"]
[WhiteFideId "2226332"]
[BlackFideId "108049"]
[WhiteElo "2546"]
[BlackElo "2598"]
[Result "1-0"]
[Round "5"]
[TimeControl "600+2"]
[Date "2023.03.13"]
[WhiteClock "0:01:15"]
[BlackClock "0:00:24"]

1. e4 {[%clk 0:10:01]}  c5 {[%clk 0:09:57]} 2. Nc3 {[%clk 0:10:02]}  a6 {[%clk 0:09:51]} 3. g4 {[%clk 0:10:02]}  b5 {[%clk 0:09:45]} 4. Bg2 {[%clk 0:10:03]}  Bb7 {[%clk 0:09:47]} 5. d3 {[%clk 0:10:04]}  e6 {[%clk 0:09:08]} 6. Nh3 {[%clk 0:10:02]}  d5 {[%clk 0:08:24]} 7. exd5 {[%clk 0:09:59]}  Nf6 {[%clk 0:08:08]} 8. Nf4 {[%clk 0:08:03]}  b4 {[%clk 0:07:34]} 9. g5 {[%clk 0:06:49]}  Nxd5 {[%clk 0:06:31]} 10. Ncxd5 {[%clk 0:06:30]}  exd5 {[%clk 0:06:33]} 11. O-O {[%clk 0:05:35]}  Be7 {[%clk 0:06:31]} 12. h4 {[%clk 0:05:30]}  O-O {[%clk 0:06:29]} 13. Re1 {[%clk 0:05:11]}  Bd6 {[%clk 0:06:23]} 14. Qg4 {[%clk 0:04:37]}  Bxf4 {[%clk 0:06:09]} 15. Bxf4 {[%clk 0:04:36]}  Nc6 {[%clk 0:06:10]} 16. c3 {[%clk 0:04:27]}  Ra7 {[%clk 0:05:44]} 17. Qg3 {[%clk 0:04:02]}  Ne7 {[%clk 0:03:52]} 18. Bc7 {[%clk 0:03:48]}  Qd7 {[%clk 0:03:39]} 19. Qd6 {[%clk 0:03:02]}  Qxd6 {[%clk 0:02:40]} 20. Bxd6 {[%clk 0:03:02]}  Nf5 {[%clk 0:02:41]} 21. Bxc5 {[%clk 0:03:03]}  Raa8 {[%clk 0:02:43]} 22. Bxf8 {[%clk 0:02:56]}  Kxf8 {[%clk 0:02:45]} 23. Re5 {[%clk 0:02:40]}  Nxh4 {[%clk 0:02:41]} 24. Bxd5 {[%clk 0:02:38]}  Rb8 {[%clk 0:02:14]} 25. Bxb7 {[%clk 0:02:34]}  Rxb7 {[%clk 0:02:16]} 26. Ra5 {[%clk 0:02:12]}  bxc3 {[%clk 0:02:12]} 27. bxc3 {[%clk 0:02:14]}  Rb2 {[%clk 0:02:07]} 28. Rxa6 {[%clk 0:02:09]}  Nf3+ {[%clk 0:02:07]} 29. Kg2 {[%clk 0:02:09]}  Nxg5 {[%clk 0:02:09]} 30. a4 {[%clk 0:02:03]}  Ne6 {[%clk 0:02:08]} 31. d4 {[%clk 0:01:33]}  g5 {[%clk 0:01:31]} 32. a5 {[%clk 0:01:30]}  Nf4+ {[%clk 0:01:23]} 33. Kf3 {[%clk 0:01:29]}  Kg7 {[%clk 0:01:18]} 34. Rb6 {[%clk 0:01:22]}  Rc2 {[%clk 0:01:09]} 35. Rb3 {[%clk 0:01:22]}  f5 {[%clk 0:01:05]} 36. a6 {[%clk 0:01:15]}  Nd5 {[%clk 0:00:24]} 1-0


[Site "Internet"]

[Event "Chessable Masters - Torneo preliminare"]
[White "Sankalp, Gupta"]
[Black "Tan, Zhongyi"]
[WhiteFideId "5097010"]
[BlackFideId "8603642"]
[WhiteElo "2427"]
[BlackElo "2517"]
[Result "0-1"]
[Round "5"]
[TimeControl "600+2"]
[Date "2023.03.13"]
[WhiteClock "0:00:03"]
[BlackClock "0:01:02"]

1. d4 {[%clk 0:06:57]}  d5 {[%clk 0:09:57]} 2. Bf4 {[%clk 0:06:57]}  Nf6 {[%clk 0:09:56]} 3. e3 {[%clk 0:06:57]}  Bg4 {[%clk 0:09:56]} 4. Qd3 {[%clk 0:06:54]}  a6 {[%clk 0:09:43]} 5. c4 {[%clk 0:06:45]}  e6 {[%clk 0:09:37]} 6. cxd5 {[%clk 0:06:44]}  Bb4+ {[%clk 0:09:20]} 7. Nd2 {[%clk 0:06:24]}  exd5 {[%clk 0:09:14]} 8. a3 {[%clk 0:06:24]}  Bd6 {[%clk 0:09:10]} 9. Bxd6 {[%clk 0:06:10]}  Qxd6 {[%clk 0:09:10]} 10. Ngf3 {[%clk 0:06:10]}  Nbd7 {[%clk 0:09:03]} 11. Be2 {[%clk 0:06:04]}  O-O {[%clk 0:09:03]} 12. O-O {[%clk 0:06:04]}  Rfe8 {[%clk 0:09:03]} 13. b4 {[%clk 0:05:46]}  b5 {[%clk 0:08:32]} 14. Nb3 {[%clk 0:05:25]}  Bxf3 {[%clk 0:08:20]} 15. Bxf3 {[%clk 0:05:24]}  Nb6 {[%clk 0:08:20]} 16. Nc5 {[%clk 0:05:22]}  Nc4 {[%clk 0:08:12]} 17. a4 {[%clk 0:05:20]}  c6 {[%clk 0:08:05]} 18. Ra2 {[%clk 0:05:17]}  Nd7 {[%clk 0:07:38]} 19. Rfa1 {[%clk 0:04:48]}  bxa4 {[%clk 0:07:38]} 20. Qc3 {[%clk 0:04:08]}  a5 {[%clk 0:04:50]} 21. Rxa4 {[%clk 0:04:04]}  Ndb6 {[%clk 0:04:49]} 22. R4a2 {[%clk 0:03:55]}  axb4 {[%clk 0:04:48]} 23. Rxa8 {[%clk 0:03:51]}  Rxa8 {[%clk 0:04:50]} 24. Rxa8+ {[%clk 0:03:52]}  Nxa8 {[%clk 0:04:52]} 25. Qxb4 {[%clk 0:03:53]}  Nab6 {[%clk 0:04:51]} 26. Be2 {[%clk 0:03:26]}  g6 {[%clk 0:04:44]} 27. g3 {[%clk 0:03:22]}  Kg7 {[%clk 0:04:36]} 28. Qb3 {[%clk 0:03:09]}  Qe7 {[%clk 0:04:26]} 29. Kg2 {[%clk 0:02:47]}  Qa7 {[%clk 0:04:21]} 30. Nd3 {[%clk 0:02:43]}  Qa1 {[%clk 0:04:14]} 31. Nb4 {[%clk 0:02:40]}  Qe1 {[%clk 0:04:01]} 32. Bd3 {[%clk 0:02:17]}  Qd2 {[%clk 0:03:37]} 33. Kg1 {[%clk 0:01:01]}  Nb2 {[%clk 0:02:33]} 34. Bc2 {[%clk 0:00:26]}  N6c4 {[%clk 0:02:31]} 35. Kf1 {[%clk 0:00:08]}  Qc1+ {[%clk 0:02:14]} 36. Ke2 {[%clk 0:00:09]}  Nd2 {[%clk 0:01:44]} 37. Qa2 {[%clk 0:00:10]}  Nbc4 {[%clk 0:01:03]} 38. Bd1 {[%clk 0:00:11]}  Ne4 {[%clk 0:01:02]} 39. Bb3 {[%clk 0:00:03]} 0-1


[Site "Internet"]

[Event "Chessable Masters - Torneo preliminare"]
[White "Vallejo Pons, Francisco"]
[Black "Salgado Lopez, Ivan"]
[WhiteFideId "2205530"]
[BlackFideId "2257327"]
[WhiteElo "2662"]
[BlackElo "2554"]
[Result "1-0"]
[Round "5"]
[TimeControl "600+2"]
[Date "2023.03.13"]
[WhiteClock "0:00:14"]
[BlackClock "0:00:09"]

1. e4 {[%clk 0:10:01]}  e5 {[%clk 0:09:58]} 2. Nf3 {[%clk 0:10:02]}  Nc6 {[%clk 0:09:59]} 3. Nc3 {[%clk 0:10:04]}  Nf6 {[%clk 0:09:58]} 4. h3 {[%clk 0:10:05]}  Bb4 {[%clk 0:09:54]} 5. a3 {[%clk 0:10:05]}  Ba5 {[%clk 0:09:43]} 6. b4 {[%clk 0:10:04]}  Bb6 {[%clk 0:09:44]} 7. Bc4 {[%clk 0:10:06]}  d6 {[%clk 0:09:37]} 8. d3 {[%clk 0:10:06]}  a6 {[%clk 0:09:29]} 9. Bg5 {[%clk 0:07:32]}  Be6 {[%clk 0:07:47]} 10. Nd5 {[%clk 0:07:17]}  Bxd5 {[%clk 0:07:39]} 11. Bxd5 {[%clk 0:07:16]}  h6 {[%clk 0:07:35]} 12. Bxf6 {[%clk 0:06:57]}  Qxf6 {[%clk 0:07:34]} 13. Bxc6+ {[%clk 0:06:37]}  bxc6 {[%clk 0:07:33]} 14. c4 {[%clk 0:06:36]}  O-O {[%clk 0:07:18]} 15. O-O {[%clk 0:06:24]}  a5 {[%clk 0:07:07]} 16. Qc2 {[%clk 0:06:10]}  Qe7 {[%clk 0:06:41]} 17. Rfc1 {[%clk 0:05:36]}  axb4 {[%clk 0:05:05]} 18. axb4 {[%clk 0:05:38]}  Bd4 {[%clk 0:05:05]} 19. Nxd4 {[%clk 0:05:31]}  exd4 {[%clk 0:05:07]} 20. c5 {[%clk 0:04:45]}  Rxa1 {[%clk 0:04:54]} 21. Rxa1 {[%clk 0:04:47]}  Rb8 {[%clk 0:04:45]} 22. Qc4 {[%clk 0:04:26]}  dxc5 {[%clk 0:04:42]} 23. bxc5 {[%clk 0:04:13]}  Rb5 {[%clk 0:04:40]} 24. Qxd4 {[%clk 0:03:47]}  Rxc5 {[%clk 0:04:14]} 25. g3 {[%clk 0:03:01]}  Qd6 {[%clk 0:03:57]} 26. Ra8+ {[%clk 0:02:35]}  Kh7 {[%clk 0:03:57]} 27. Rd8 {[%clk 0:02:19]}  Rc1+ {[%clk 0:02:40]} 28. Kg2 {[%clk 0:02:20]}  Qe6 {[%clk 0:02:03]} 29. Qd7 {[%clk 0:02:07]}  Qf6 {[%clk 0:01:04]} 30. Qc8 {[%clk 0:00:26]}  g6 {[%clk 0:00:37]} 31. Qxc7 {[%clk 0:00:10]}  Rc2 {[%clk 0:00:32]} 32. Qb6 {[%clk 0:00:10]}  Rb2 {[%clk 0:00:19]} 33. Qd4 {[%clk 0:00:10]}  Qxd4 {[%clk 0:00:10]} 34. Rxd4 {[%clk 0:00:12]}  c5 {[%clk 0:00:12]} 35. Rd7 {[%clk 0:00:12]}  Kg7 {[%clk 0:00:13]} 36. Kf3 {[%clk 0:00:13]}  Rc2 {[%clk 0:00:12]} 37. Rc7 {[%clk 0:00:12]}  Rc3 {[%clk 0:00:09]} 38. Ke3 {[%clk 0:00:11]}  g5 {[%clk 0:00:09]} 39. Kd2 {[%clk 0:00:10]}  Ra3 {[%clk 0:00:08]} 40. Rxc5 {[%clk 0:00:11]}  Ra1 {[%clk 0:00:10]} 41. h4 {[%clk 0:00:10]}  gxh4 {[%clk 0:00:09]} 42. gxh4 {[%clk 0:00:12]}  Rh1 {[%clk 0:00:08]} 43. h5 {[%clk 0:00:13]}  Rh3 {[%clk 0:00:09]} 44. Ke2 {[%clk 0:00:14]} 1-0


[Site "Internet"]

[Event "Chessable Masters - Torneo preliminare"]
[White "Mamedov, Rauf"]
[Black "Makhnev, Denis"]
[WhiteFideId "13401653"]
[BlackFideId "13707647"]
[WhiteElo "2632"]
[BlackElo "2505"]
[Result "1-0"]
[Round "5"]
[TimeControl "600+2"]
[Date "2023.03.13"]
[WhiteClock "0:03:57"]
[BlackClock "0:00:04"]

1. e4 {[%clk 0:09:55]}  e5 {[%clk 0:10:00]} 2. Nf3 {[%clk 0:09:54]}  Nc6 {[%clk 0:10:02]} 3. Bb5 {[%clk 0:09:53]}  a6 {[%clk 0:10:00]} 4. Ba4 {[%clk 0:09:54]}  Nf6 {[%clk 0:09:43]} 5. Nc3 {[%clk 0:09:54]}  Be7 {[%clk 0:09:17]} 6. O-O {[%clk 0:09:53]}  b5 {[%clk 0:08:59]} 7. Bb3 {[%clk 0:09:53]}  d6 {[%clk 0:09:01]} 8. a4 {[%clk 0:09:54]}  b4 {[%clk 0:07:45]} 9. Nd5 {[%clk 0:09:54]}  O-O {[%clk 0:06:47]} 10. d4 {[%clk 0:09:53]}  Bg4 {[%clk 0:06:16]} 11. Nxe5 {[%clk 0:09:54]}  Nxe5 {[%clk 0:03:49]} 12. f3 {[%clk 0:09:53]}  Nxd5 {[%clk 0:03:50]} 13. fxg4 {[%clk 0:08:29]}  Nf6 {[%clk 0:03:49]} 14. dxe5 {[%clk 0:08:29]}  dxe5 {[%clk 0:03:50]} 15. Qf3 {[%clk 0:08:21]}  Bc5+ {[%clk 0:03:46]} 16. Kh1 {[%clk 0:07:58]}  Qd4 {[%clk 0:03:20]} 17. Re1 {[%clk 0:07:53]}  Qd7 {[%clk 0:02:38]} 18. h3 {[%clk 0:07:48]}  Ne8 {[%clk 0:02:38]} 19. Bg5 {[%clk 0:07:44]}  Nd6 {[%clk 0:02:27]} 20. Rad1 {[%clk 0:07:44]}  Rab8 {[%clk 0:01:39]} 21. Qd3 {[%clk 0:06:08]}  Qc6 {[%clk 0:00:34]} 22. Qf3 {[%clk 0:05:29]}  Bd4 {[%clk 0:00:25]} 23. Be7 {[%clk 0:05:26]}  Bxb2 {[%clk 0:00:26]} 24. g5 {[%clk 0:05:07]}  Bd4 {[%clk 0:00:15]} 25. h4 {[%clk 0:04:57]}  Qc3 {[%clk 0:00:06]} 26. Bxf8 {[%clk 0:04:40]}  Rxf8 {[%clk 0:00:04]} 27. Rf1 {[%clk 0:04:41]}  a5 {[%clk 0:00:03]} 28. h5 {[%clk 0:04:40]}  Qc6 {[%clk 0:00:03]} 29. g6 {[%clk 0:04:35]}  Qxe4 {[%clk 0:00:03]} 30. Qh3 {[%clk 0:03:53]}  hxg6 {[%clk 0:00:03]} 31. Rde1 {[%clk 0:03:54]}  Qc6 {[%clk 0:00:02]} 32. hxg6 {[%clk 0:03:55]}  Nc4 {[%clk 0:00:04]} 33. Qh7# {[%clk 0:03:57]} 1-0


[Site "Internet"]

[Event "Chessable Masters - Torneo preliminare"]
[White "Sasikiran, Krishnan"]
[Black "Pranav, V"]
[WhiteFideId "5004985"]
[BlackFideId "25060783"]
[WhiteElo "2559"]
[BlackElo "2462"]
[Result "1-0"]
[Round "5"]
[TimeControl "600+2"]
[Date "2023.03.13"]
[WhiteClock "0:00:24"]
[BlackClock "0:00:21"]

1. e4 {[%clk 0:10:01]}  e5 {[%clk 0:09:28]} 2. Nf3 {[%clk 0:10:01]}  Nc6 {[%clk 0:09:29]} 3. Bb5 {[%clk 0:10:01]}  a6 {[%clk 0:09:30]} 4. Ba4 {[%clk 0:10:03]}  Nf6 {[%clk 0:09:32]} 5. O-O {[%clk 0:10:04]}  b5 {[%clk 0:09:33]} 6. Bb3 {[%clk 0:10:04]}  Bb7 {[%clk 0:09:35]} 7. Re1 {[%clk 0:09:50]}  Bc5 {[%clk 0:09:33]} 8. c3 {[%clk 0:09:51]}  d6 {[%clk 0:09:34]} 9. d4 {[%clk 0:09:48]}  Bb6 {[%clk 0:09:35]} 10. a4 {[%clk 0:09:36]}  O-O {[%clk 0:09:30]} 11. Bg5 {[%clk 0:09:16]}  h6 {[%clk 0:09:29]} 12. Bh4 {[%clk 0:09:17]}  Re8 {[%clk 0:09:03]} 13. d5 {[%clk 0:08:33]}  Nb8 {[%clk 0:08:27]} 14. axb5 {[%clk 0:08:30]}  axb5 {[%clk 0:08:29]} 15. Rxa8 {[%clk 0:08:31]}  Bxa8 {[%clk 0:08:30]} 16. Na3 {[%clk 0:08:32]}  Nbd7 {[%clk 0:08:06]} 17. Nxb5 {[%clk 0:08:09]}  g5 {[%clk 0:08:06]} 18. Bg3 {[%clk 0:08:07]}  Nf8 {[%clk 0:07:31]} 19. Na3 {[%clk 0:06:35]}  Ng6 {[%clk 0:07:27]} 20. Nc4 {[%clk 0:06:35]}  Bb7 {[%clk 0:07:15]} 21. Nxb6 {[%clk 0:06:15]}  cxb6 {[%clk 0:07:17]} 22. Nd2 {[%clk 0:05:49]}  Bc8 {[%clk 0:06:53]} 23. f3 {[%clk 0:05:36]}  h5 {[%clk 0:06:52]} 24. Bf2 {[%clk 0:05:08]}  Nf4 {[%clk 0:06:49]} 25. Bc4 {[%clk 0:05:06]}  Kh7 {[%clk 0:06:23]} 26. Qb3 {[%clk 0:04:37]}  Nd7 {[%clk 0:06:04]} 27. Bf1 {[%clk 0:03:31]}  Nc5 {[%clk 0:04:40]} 28. Qc2 {[%clk 0:03:27]}  g4 {[%clk 0:03:56]} 29. b4 {[%clk 0:03:26]}  Nb7 {[%clk 0:03:56]} 30. fxg4 {[%clk 0:02:19]}  Bxg4 {[%clk 0:03:54]} 31. Nc4 {[%clk 0:02:07]}  b5 {[%clk 0:03:16]} 32. Ne3 {[%clk 0:01:47]}  Bd7 {[%clk 0:03:10]} 33. g3 {[%clk 0:01:33]}  Rg8 {[%clk 0:03:09]} 34. Kh1 {[%clk 0:01:17]}  Nh3 {[%clk 0:02:50]} 35. Nf5 {[%clk 0:01:01]}  Nxf2+ {[%clk 0:01:52]} 36. Qxf2 {[%clk 0:01:02]}  Qf6 {[%clk 0:01:53]} 37. Bh3 {[%clk 0:00:50]}  Ra8 {[%clk 0:01:26]} 38. Rf1 {[%clk 0:00:33]}  Nd8 {[%clk 0:00:49]} 39. Qe3 {[%clk 0:00:25]}  Ra2 {[%clk 0:00:46]} 40. Kg1 {[%clk 0:00:25]}  Rb2 {[%clk 0:00:27]} 41. Nh4 {[%clk 0:00:19]}  Qh6 {[%clk 0:00:18]} 42. Qxh6+ {[%clk 0:00:19]}  Kxh6 {[%clk 0:00:20]} 43. Bxd7 {[%clk 0:00:20]}  Rc2 {[%clk 0:00:22]} 44. Nf5+ {[%clk 0:00:21]}  Kg6 {[%clk 0:00:21]} 45. Nxd6 {[%clk 0:00:22]}  Rxc3 {[%clk 0:00:22]} 46. Bxb5 {[%clk 0:00:23]}  Rb3 {[%clk 0:00:23]} 47. Nxf7 {[%clk 0:00:23]}  Nxf7 {[%clk 0:00:21]} 48. Be8 {[%clk 0:00:24]} 1-0


[Site "Internet"]

[Event "Chessable Masters - Torneo preliminare"]
[White "Maghsoodloo, Parham"]
[Black "Christiansen, Johan-Sebastian"]
[WhiteFideId "12539929"]
[BlackFideId "1512668"]
[WhiteElo "2660"]
[BlackElo "2481"]
[Result "0-1"]
[Round "5"]
[TimeControl "600+2"]
[Date "2023.03.13"]
[WhiteClock "0:04:57"]
[BlackClock "0:03:35"]

1. e4 {[%clk 0:10:01]}  e5 {[%clk 0:09:47]} 2. Nf3 {[%clk 0:10:02]}  Nc6 {[%clk 0:09:46]} 3. Bb5 {[%clk 0:10:02]}  f5 {[%clk 0:09:46]} 4. d3 {[%clk 0:09:54]}  Nf6 {[%clk 0:09:47]} 5. O-O {[%clk 0:09:35]}  fxe4 {[%clk 0:09:47]} 6. dxe4 {[%clk 0:09:35]}  Bc5 {[%clk 0:09:49]} 7. Bg5 {[%clk 0:09:33]}  d6 {[%clk 0:09:49]} 8. Nc3 {[%clk 0:09:31]}  O-O {[%clk 0:09:51]} 9. Nd5 {[%clk 0:09:29]}  Kh8 {[%clk 0:09:52]} 10. c3 {[%clk 0:09:19]}  a6 {[%clk 0:09:45]} 11. Bc4 {[%clk 0:09:01]}  Be6 {[%clk 0:09:24]} 12. b4 {[%clk 0:08:59]}  Ba7 {[%clk 0:09:21]} 13. Bb3 {[%clk 0:08:56]}  Qd7 {[%clk 0:09:20]} 14. Bxf6 {[%clk 0:08:48]}  gxf6 {[%clk 0:09:18]} 15. Nh4 {[%clk 0:08:49]}  Qg7 {[%clk 0:09:10]} 16. Ne3 {[%clk 0:08:32]}  Bxb3 {[%clk 0:08:34]} 17. axb3 {[%clk 0:08:33]}  Bxe3 {[%clk 0:08:28]} 18. fxe3 {[%clk 0:08:34]}  Qg5 {[%clk 0:08:28]} 19. Nf5 {[%clk 0:08:34]}  Rg8 {[%clk 0:08:30]} 20. Rf2 {[%clk 0:08:24]}  Rae8 {[%clk 0:08:21]} 21. Qf3 {[%clk 0:08:12]}  Nd8 {[%clk 0:08:04]} 22. Raf1 {[%clk 0:08:07]}  Ne6 {[%clk 0:08:02]} 23. Ng3 {[%clk 0:08:03]}  Rg6 {[%clk 0:07:54]} 24. Qe2 {[%clk 0:07:58]}  Reg8 {[%clk 0:07:44]} 25. Rf5 {[%clk 0:07:52]}  Qh6 {[%clk 0:07:45]} 26. Rh5 {[%clk 0:07:47]}  Qg7 {[%clk 0:07:46]} 27. Rf2 {[%clk 0:07:46]}  Ng5 {[%clk 0:07:40]} 28. Rh4 {[%clk 0:07:44]}  Qf7 {[%clk 0:07:33]} 29. c4 {[%clk 0:07:29]}  b5 {[%clk 0:07:23]} 30. Qf1 {[%clk 0:07:11]}  bxc4 {[%clk 0:07:19]} 31. bxc4 {[%clk 0:07:13]}  Qe6 {[%clk 0:06:26]} 32. Kh1 {[%clk 0:06:35]}  Rb8 {[%clk 0:06:27]} 33. b5 {[%clk 0:06:31]}  a5 {[%clk 0:06:25]} 34. h3 {[%clk 0:06:25]}  a4 {[%clk 0:06:10]} 35. Nh5 {[%clk 0:06:24]}  a3 {[%clk 0:05:31]} 36. Nxf6 {[%clk 0:06:20]}  a2 {[%clk 0:05:28]} 37. Nd5 {[%clk 0:06:21]}  c6 {[%clk 0:05:09]} 38. Nc3 {[%clk 0:05:48]}  cxb5 {[%clk 0:04:48]} 39. cxb5 {[%clk 0:05:49]}  Ra8 {[%clk 0:04:38]} 40. Qa1 {[%clk 0:05:49]}  Qc4 {[%clk 0:04:18]} 41. Nxa2 {[%clk 0:05:19]}  Nxe4 {[%clk 0:04:12]} 42. Kh2 {[%clk 0:05:20]}  Rag8 {[%clk 0:04:04]} 43. Rb2 {[%clk 0:04:58]}  Rxg2+ {[%clk 0:03:32]} 44. Rxg2 {[%clk 0:04:54]}  Rxg2+ {[%clk 0:03:33]} 45. Kxg2 {[%clk 0:04:56]}  Qe2+ {[%clk 0:03:34]} 46. Kh1 {[%clk 0:04:57]}  Qf3+ {[%clk 0:03:35]} 0-1


[Site "Internet"]

[Event "Chessable Masters - Torneo preliminare"]
[White "Xu, Yi"]
[Black "Predke, Alexandr"]
[WhiteFideId "8605564"]
[BlackFideId "24107581"]
[WhiteElo "2402"]
[BlackElo "2582"]
[Result "0-1"]
[Round "5"]
[TimeControl "600+2"]
[Date "2023.03.13"]
[WhiteClock "0:00:07"]
[BlackClock "0:01:18"]

1. e4 {[%clk 0:09:32]}  c5 {[%clk 0:09:59]} 2. Nf3 {[%clk 0:09:31]}  e6 {[%clk 0:09:58]} 3. d4 {[%clk 0:09:31]}  cxd4 {[%clk 0:09:59]} 4. Nxd4 {[%clk 0:09:33]}  Nc6 {[%clk 0:10:00]} 5. Nc3 {[%clk 0:09:33]}  Qc7 {[%clk 0:10:01]} 6. Be3 {[%clk 0:09:29]}  a6 {[%clk 0:10:01]} 7. g4 {[%clk 0:09:21]}  h6 {[%clk 0:09:55]} 8. Qd2 {[%clk 0:09:11]}  Nf6 {[%clk 0:09:27]} 9. f3 {[%clk 0:09:07]}  Ne5 {[%clk 0:08:51]} 10. O-O-O {[%clk 0:08:33]}  Bb4 {[%clk 0:08:45]} 11. a3 {[%clk 0:06:57]}  Bxc3 {[%clk 0:08:08]} 12. Qxc3 {[%clk 0:06:59]}  Qxc3 {[%clk 0:08:09]} 13. bxc3 {[%clk 0:07:00]}  b5 {[%clk 0:08:11]} 14. Bf4 {[%clk 0:06:19]}  Ng6 {[%clk 0:08:10]} 15. Bd6 {[%clk 0:06:18]}  Bb7 {[%clk 0:08:12]} 16. c4 {[%clk 0:06:04]}  bxc4 {[%clk 0:07:51]} 17. Bxc4 {[%clk 0:06:05]}  Rc8 {[%clk 0:07:51]} 18. Bb3 {[%clk 0:06:03]}  Ne7 {[%clk 0:07:23]} 19. Rhe1 {[%clk 0:05:39]}  Nc6 {[%clk 0:07:13]} 20. Nxc6 {[%clk 0:05:14]}  Bxc6 {[%clk 0:07:15]} 21. Rd4 {[%clk 0:04:56]}  Kd8 {[%clk 0:07:02]} 22. Red1 {[%clk 0:04:34]}  Ne8 {[%clk 0:07:02]} 23. Bb4 {[%clk 0:04:31]}  Nc7 {[%clk 0:06:06]} 24. c4 {[%clk 0:04:14]}  Ra8 {[%clk 0:05:57]} 25. Ba5 {[%clk 0:04:09]}  Kc8 {[%clk 0:05:52]} 26. a4 {[%clk 0:04:04]}  Rb8 {[%clk 0:05:31]} 27. Bc2 {[%clk 0:02:31]}  e5 {[%clk 0:05:23]} 28. Rd6 {[%clk 0:02:09]}  Ne6 {[%clk 0:05:24]} 29. Bc3 {[%clk 0:01:43]}  f6 {[%clk 0:05:25]} 30. Kd2 {[%clk 0:01:40]}  h5 {[%clk 0:05:20]} 31. g5 {[%clk 0:01:22]}  Nxg5 {[%clk 0:05:21]} 32. Ke3 {[%clk 0:01:20]}  Ne6 {[%clk 0:05:17]} 33. h4 {[%clk 0:01:15]}  Nc5 {[%clk 0:05:08]} 34. Rg1 {[%clk 0:01:10]}  Rh7 {[%clk 0:05:06]} 35. f4 {[%clk 0:00:59]}  Bxa4 {[%clk 0:04:53]} 36. Rd5 {[%clk 0:00:51]}  exf4+ {[%clk 0:04:23]} 37. Kd2 {[%clk 0:00:49]}  Nb3+ {[%clk 0:04:25]} 38. Bxb3 {[%clk 0:00:38]}  Rxb3 {[%clk 0:04:05]} 39. e5 {[%clk 0:00:27]}  Bc6 {[%clk 0:03:52]} 40. Ra5 {[%clk 0:00:20]}  f3 {[%clk 0:02:58]} 41. exf6 {[%clk 0:00:18]}  gxf6 {[%clk 0:02:59]} 42. Rxa6 {[%clk 0:00:13]}  Re7 {[%clk 0:01:58]} 43. Kc2 {[%clk 0:00:14]}  Rb8 {[%clk 0:02:00]} 44. Rg8+ {[%clk 0:00:10]}  Kb7 {[%clk 0:01:58]} 45. Rxb8+ {[%clk 0:00:10]}  Kxb8 {[%clk 0:01:40]} 46. Bd4 {[%clk 0:00:12]}  Re4 {[%clk 0:01:37]} 47. Ba7+ {[%clk 0:00:10]}  Kb7 {[%clk 0:01:38]} 48. Ra1 {[%clk 0:00:07]}  f2 {[%clk 0:01:18]} 0-1


[Site "Internet"]

[Event "Chessable Masters - Torneo preliminare"]
[White "Matinian, Nikita"]
[Black "Lenderman, Aleksandr"]
[WhiteFideId "24129100"]
[BlackFideId "2021285"]
[WhiteElo "2326"]
[BlackElo "2646"]
[Result "1-0"]
[Round "5"]
[TimeControl "600+2"]
[Date "2023.03.13"]
[WhiteClock "0:04:07"]
[BlackClock "0:00:45"]

1. e4 {[%clk 0:10:01]}  e5 {[%clk 0:09:59]} 2. Nf3 {[%clk 0:10:02]}  Nf6 {[%clk 0:10:00]} 3. d4 {[%clk 0:10:03]}  Nxe4 {[%clk 0:09:59]} 4. Bd3 {[%clk 0:10:04]}  d5 {[%clk 0:09:59]} 5. Nxe5 {[%clk 0:10:04]}  Nd7 {[%clk 0:09:40]} 6. Nxd7 {[%clk 0:10:04]}  Bxd7 {[%clk 0:09:39]} 7. Nc3 {[%clk 0:10:02]}  Nf6 {[%clk 0:08:48]} 8. O-O {[%clk 0:10:01]}  Be7 {[%clk 0:08:47]} 9. Bg5 {[%clk 0:09:47]}  c6 {[%clk 0:08:42]} 10. Bxf6 {[%clk 0:09:10]}  Bxf6 {[%clk 0:08:41]} 11. Re1+ {[%clk 0:09:12]}  Be6 {[%clk 0:08:42]} 12. Ne2 {[%clk 0:08:05]}  O-O {[%clk 0:08:28]} 13. Nf4 {[%clk 0:08:05]}  Bd7 {[%clk 0:07:59]} 14. c3 {[%clk 0:07:55]}  g6 {[%clk 0:07:56]} 15. g3 {[%clk 0:07:52]}  Re8 {[%clk 0:07:41]} 16. Qf3 {[%clk 0:07:49]}  Bg7 {[%clk 0:07:37]} 17. h4 {[%clk 0:07:50]}  Qf6 {[%clk 0:07:30]} 18. Re3 {[%clk 0:07:09]}  Rxe3 {[%clk 0:07:24]} 19. fxe3 {[%clk 0:07:10]}  Re8 {[%clk 0:07:22]} 20. Rf1 {[%clk 0:07:07]}  Qe7 {[%clk 0:07:20]} 21. Re1 {[%clk 0:06:59]}  Qd6 {[%clk 0:07:08]} 22. e4 {[%clk 0:06:57]}  dxe4 {[%clk 0:07:07]} 23. Rxe4 {[%clk 0:06:59]}  Rxe4 {[%clk 0:07:05]} 24. Qxe4 {[%clk 0:07:01]}  h5 {[%clk 0:06:57]} 25. Bc4 {[%clk 0:06:57]}  Kf8 {[%clk 0:06:55]} 26. b4 {[%clk 0:06:54]}  Bf5 {[%clk 0:06:37]} 27. Qe3 {[%clk 0:06:48]}  Bf6 {[%clk 0:06:33]} 28. a4 {[%clk 0:06:38]}  b6 {[%clk 0:06:24]} 29. Kf2 {[%clk 0:06:32]}  Bc2 {[%clk 0:06:01]} 30. a5 {[%clk 0:06:19]}  bxa5 {[%clk 0:05:57]} 31. bxa5 {[%clk 0:06:21]}  Bf5 {[%clk 0:05:41]} 32. a6 {[%clk 0:06:00]}  Bd8 {[%clk 0:05:37]} 33. Nd3 {[%clk 0:05:51]}  Bxd3 {[%clk 0:05:01]} 34. Qxd3 {[%clk 0:05:49]}  Bb6 {[%clk 0:04:45]} 35. Kg2 {[%clk 0:05:42]}  Bc7 {[%clk 0:04:24]} 36. Qf3 {[%clk 0:05:41]}  f5 {[%clk 0:04:25]} 37. Be2 {[%clk 0:04:45]}  Kg7 {[%clk 0:04:20]} 38. Qe3 {[%clk 0:04:41]}  f4 {[%clk 0:03:46]} 39. Qxf4 {[%clk 0:04:25]}  Qxf4 {[%clk 0:03:48]} 40. gxf4 {[%clk 0:04:27]}  Bxf4 {[%clk 0:03:48]} 41. Kf3 {[%clk 0:04:28]}  Bd2 {[%clk 0:03:44]} 42. c4 {[%clk 0:04:29]}  Be1 {[%clk 0:03:43]} 43. c5 {[%clk 0:04:26]}  Bxh4 {[%clk 0:03:36]} 44. Ke3 {[%clk 0:04:19]}  Bg5+ {[%clk 0:03:18]} 45. Kd3 {[%clk 0:04:18]}  Bf4 {[%clk 0:03:02]} 46. Bf3 {[%clk 0:04:20]}  Kf6 {[%clk 0:02:58]} 47. Bxc6 {[%clk 0:04:21]}  g5 {[%clk 0:02:53]} 48. Ke4 {[%clk 0:04:22]}  Bg3 {[%clk 0:02:48]} 49. Be8 {[%clk 0:04:15]}  h4 {[%clk 0:02:48]} 50. Bd7 {[%clk 0:04:16]}  Bf2 {[%clk 0:02:33]} 51. Bg4 {[%clk 0:04:17]}  Bg1 {[%clk 0:02:22]} 52. Kd5 {[%clk 0:04:16]}  Ke7 {[%clk 0:02:13]} 53. Kc4 {[%clk 0:04:12]}  Bf2 {[%clk 0:00:43]} 54. d5 {[%clk 0:04:11]}  Bg3 {[%clk 0:00:44]} 55. Kb5 {[%clk 0:04:09]}  Bf4 {[%clk 0:00:43]} 56. Kc6 {[%clk 0:04:10]}  Be3 {[%clk 0:00:44]} 57. d6+ {[%clk 0:04:11]}  Kd8 {[%clk 0:00:45]} 58. Kd5 {[%clk 0:04:06]}  Bd2 {[%clk 0:00:44]} 59. c6 {[%clk 0:04:06]}  Ba5 {[%clk 0:00:44]} 60. Kc5 {[%clk 0:04:06]}  Bb6+ {[%clk 0:00:45]} 61. Kb5 {[%clk 0:04:07]} 1-0


[Site "Internet"]